bitfinex/quotes_ETHUSD_20251010
["timestamp","ask_amount","ask_price","bid_price","bid_amount"]
[1760131794276,12.67801407,3612.7,3593.4,1.36035252]
[1760131794511,1.1,3612.9,3593.6,1.39823211]
[1760131794693,1.1,3612.9,3596.3,14.5]
[1760131794861,0.25874045,3612.8,3596.3,14.5]
[1760131795192,0.2062135,3612.7,3596.4,0.51365107]
[1760131795493,1.1,3612.9,3596.4,0.51365107]
[1760131795494,1.1,3612.9,3596.5,0.46906179]
[1760131795659,0.27710521,3612.6,3595.1,14.5]
[1760131795862,0.24133769,3612.5,3595.1,14.5]
[1760131796062,0.27900826,3612.4,3592.2,1.36258839]
[1760131796289,0.26825548,3612.4,3592.2,1.36258839]
[1760131796459,0.23658048,3612.4,3593.4,0.25522385]
[1760131796665,0.1,3612.9,3593.4,0.25522385]
[1760131796987,1.02049926,3612.8,3598.1,14.5]
[1760131797158,0.50197803,3612.8,3598.1,14.5]
[1760131797362,0.1,3612.9,3598.7,100.0]
[1760131797587,0.1,3612.9,3598.8,1.12419965]
[1760131797789,0.102,3612.9,3593.6,0.28444174]
[1760131797969,0.102,3612.9,3593.7,1.31978756]
[1760131798168,0.102,3612.9,3593.9,0.68374084]
[1760131798369,0.102,3612.9,3594.0,0.26231291]
[1760131798569,0.102,3612.9,3602.2,14.5]
[1760131798960,0.102,3612.9,3591.4,0.00474]
[1760131799160,0.102,3612.9,3593.6,0.22776136]
[1760131799369,0.102,3612.9,3594.9,1.30690716]
[1760131799594,0.102,3612.9,3595.0,0.44315239]
[1760131800096,0.102,3612.9,3593.6,0.25406693]
[1760131800261,0.102,3612.9,3590.9,1.31829516]
[1760131800589,100.31887656,3612.8,3590.9,1.31829516]
[1760131800760,1.32582351,3612.7,3592.2,0.19706185]
[1760131800964,0.102,3612.9,3592.6,0.20089518]
[1760131801264,0.102,3612.9,3593.6,0.26780445]
[1760131801463,0.24595112,3612.8,3593.6,1.61620903]
[1760131801669,0.22384483,3612.8,3590.7,1.30975451]
[1760131801874,0.22384483,3612.8,3592.6,1.306757]
[1760131802170,0.35805478,3612.7,3594.6,1.38192829]
[1760131802371,0.13404403,3612.8,3600.2,1.31031957]
[1760131802591,0.102,3612.9,3600.3,114.30398444]
[1760131802799,0.102,3612.9,3600.3,116.74225593]
[1760131803107,0.002,3612.9,3612.8,14.5]
[1760131803395,1.34037498,3635.8,3613.0,0.002]
[1760131803596,1.39702974,3635.7,3612.8,2.758]
[1760131803795,1.36537141,3630.0,3612.9,0.58628617]
[1760131804098,1.34037498,3635.8,3612.9,0.58626962]
[1760131804301,1.34037498,3635.8,3605.9,1.34173115]
[1760131804511,1.36376917,3627.9,3606.6,1.31573956]
[1760131804669,1.37154085,3636.1,3606.7,0.45542914]
[1760131804870,100.0,3633.0,3606.7,0.74920346]
[1760131805085,1.31650329,3641.0,3606.7,0.45542914]
[1760131805293,0.4501,3642.6,3606.7,0.45542914]
[1760131805294,0.16215724,3623.8,3606.8,0.32040375]
[1760131805482,100.0,3630.5,3606.9,0.45968117]
[1760131805824,0.73493368,3637.1,3607.0,1.34583576]
[1760131806025,0.17225782,3646.1,3607.1,0.27311717]
[1760131806216,1.36702378,3631.3,3607.2,2.758]
[1760131806414,0.4501,3644.3,3607.4,0.00406396]
[1760131806616,1.34273566,3628.7,3607.5,3.05716313]
[1760131806821,1.34273566,3628.7,3607.6,17.261]
[1760131807127,1.39119947,3626.1,3622.3,0.02155]
[1760131807424,1.34273566,3628.7,3615.1,0.00158]
[1760131807628,1.37017343,3621.1,3607.9,0.00159]
[1760131807807,0.219,3639.1,3603.1,14.41153227]
[1760131807808,1.34273566,3628.7,3614.2,0.32599266]
[1760131808007,12.496,3623.2,3607.0,0.00159]
[1760131808330,100.0,3617.1,3603.1,10.1137283]
[1760131808536,1.0,3622.3,3603.1,10.1137283]
[1760131808537,0.4501,3617.0,3603.1,10.1137283]
[1760131808743,0.56530184,3617.0,3595.9,0.00159]
[1760131809028,0.31383206,3616.9,3593.3,0.00845]
[1760131809196,0.20535545,3616.8,3594.6,0.30343315]
[1760131809400,0.39655071,3616.7,3593.6,0.01423211]
[1760131809742,0.00406396,3616.5,3593.3,0.00845]
[1760131810049,1.03774108,3616.4,3593.3,0.00845]
[1760131810199,1.09420909,3616.4,3593.3,0.00845]
[1760131810398,12.558,3616.3,3593.3,0.00845]
[1760131810600,0.72157292,3616.2,3586.3,0.0016]
[1760131810819,0.72157292,3616.2,3586.4,0.18702746]
[1760131811024,0.00406396,3616.1,3590.9,0.14528642]
[1760131811220,0.26729428,3616.0,3590.9,0.14528642]
[1760131811426,0.42530042,3615.9,3586.5,0.27391331]
[1760131811628,0.74554019,3615.8,3587.8,0.14527012]
[1760131811832,0.35107196,3615.7,3587.8,0.14527012]
[1760131812070,0.4501,3615.6,3583.9,14.5]
[1760131812211,0.69511075,3615.6,3580.0,0.5]
[1760131812541,0.37976345,3615.5,3587.8,0.14529126]
[1760131812699,0.6358426,3615.4,3580.6,0.0016]
[1760131812902,0.30476931,3615.3,3586.3,0.27404859]
[1760131813234,0.18027315,3615.2,3593.1,14.5]
[1760131813539,1.0,3622.3,3593.2,0.32198048]
[1760131813735,0.11358043,3622.2,3593.2,0.32198048]
[1760131813894,0.11358043,3622.2,3601.2,14.5]
[1760131814100,1.0,3622.3,3601.3,0.30862877]
[1760131814738,0.4501,3625.7,3594.0,0.00159]
[1760131814739,1.38599888,3632.6,3594.1,0.19326556]
[1760131814918,0.00410543,3628.3,3601.4,0.47087325]
[1760131815098,1.33165955,3628.1,3601.5,0.23747325]
[1760131815436,1.32928386,3651.0,3601.5,0.2334]
[1760131815599,0.23747325,3636.0,3601.6,0.60126291]
[1760131815803,0.23747325,3636.0,3601.7,0.2334]
[1760131815804,0.002,3622.3,3601.7,0.2334]
[1760131816229,0.37164157,3622.2,3601.7,0.2334]
[1760131816415,0.002,3622.3,3601.8,0.34072523]
[1760131816615,0.002,3622.3,3601.9,0.23750979]
[1760131816817,0.002,3622.3,3603.6,14.5]
[1760131817002,0.32518667,3622.2,3603.7,0.87048307]
[1760131817203,0.2874016,3634.1,3603.8,0.5366691]
[1760131817398,0.29594583,3623.6,3603.9,0.47750223]
[1760131817699,1.35637096,3623.4,3604.0,0.2274]
[1760131817899,0.13705312,3633.8,3604.0,0.2274]
[1760131818110,1.37727183,3633.7,3604.1,0.72632718]
[1760131818336,1.31714687,3629.0,3604.2,0.0009]
[1760131818530,1.32107208,3628.8,3604.3,0.66850831]
[1760131818704,0.4619,3642.1,3611.0,14.5]
[1760131818899,1.39432025,3636.6,3611.1,0.61938707]
[1760131819124,1.37996414,3637.9,3611.2,0.96547972]
[1760131819324,1.37996414,3637.9,3611.3,0.0009]
[1760131819505,0.013381,3636.7,3611.4,0.96381113]
[1760131819832,101.85622025,3636.6,3611.4,0.96381113]
[1760131820002,101.44560786,3636.6,3603.8,0.00159]
[1760131820339,0.013381,3636.7,3608.2,14.5]
[1760131820509,0.013381,3636.7,3604.8,1.9679]
[1760131820510,0.013381,3636.7,3608.3,0.32619943]
[1760131820718,0.013381,3636.7,3608.3,0.5518683]
[1760131821032,1.33437811,3636.5,3608.3,0.54776055]
[1760131821222,1.33437811,3636.5,3601.4,0.2334]
[1760131821223,1.33437811,3636.5,3608.4,0.91299748]
[1760131821401,0.26453106,3636.4,3608.4,0.28461054]
[1760131821737,1.36670558,3636.2,3608.5,0.50934412]
[1760131821940,1.33654861,3631.8,3608.6,0.50934412]
[1760131822234,100.0,3631.9,3601.4,0.2334]
[1760131822235,0.16457067,3632.3,3601.5,100.28975107]
[1760131822440,0.15865362,3632.4,3601.6,0.20822856]
[1760131822625,1.32885564,3632.1,3607.1,14.5]
[1760131822817,1.35659414,3632.3,3607.2,0.31916061]
[1760131822999,0.013381,3636.7,3607.2,0.28413421]
[1760131823000,0.17018754,3632.2,3607.2,0.28413421]
[1760131823204,0.2460075,3632.1,3601.5,0.51629396]
[1760131823502,0.0041127,3633.1,3601.5,0.51629396]
[1760131823702,0.22549926,3634.4,3601.5,0.51218126]
[1760131823919,0.22549926,3634.3,3601.6,0.34291516]
[1760131824122,1.34397811,3634.1,3601.7,0.33128178]
[1760131824399,0.15253873,3634.0,3601.8,0.30892833]
[1760131824638,0.54683447,3636.3,3601.9,0.53326916]
[1760131824837,1.31683447,3636.3,3601.9,0.53326916]
[1760131825045,0.00617489,3636.4,3616.3,14.5]
[1760131825241,101.31683447,3636.3,3609.1,0.00159]
[1760131825520,0.00617489,3636.4,3602.0,1.38754086]
[1760131825521,1.33227746,3636.0,3602.0,1.38754086]
[1760131825733,1.34037498,3635.8,3602.1,100.00411436]
[1760131825919,0.84861979,3635.9,3609.2,0.2748831]
[1760131826133,1.38340121,3635.6,3609.3,0.29262425]
[1760131826337,0.2927915,3635.5,3602.0,0.00159]
[1760131826541,0.2927915,3635.5,3601.4,0.2334]
[1760131826542,100.0,3632.7,3601.4,0.2334]
[1760131826753,0.34992651,3632.6,3607.7,14.5]
[1760131827050,1.76665566,3632.5,3607.8,0.29751631]
[1760131827251,1.35659414,3632.3,3607.8,0.2748831]
[1760131827458,1.35659414,3632.3,3607.8,0.43727135]
[1760131827633,1.32885564,3632.1,3607.8,0.2748831]
[1760131827831,1.3707064,3631.2,3601.4,0.2334]
[1760131828058,1.32636575,3630.6,3601.4,0.2334]
[1760131828261,1.38164537,3630.2,3601.4,0.2334]
[1760131828422,1.34447104,3629.9,3601.5,0.49693596]
[1760131828623,0.02557868,3629.6,3601.6,14.69455298]
[1760131828825,0.36778768,3629.5,3601.7,0.19455298]
[1760131829172,0.90300557,3629.4,3601.7,0.23701617]
[1760131829326,1.34273566,3628.7,3601.5,0.24846798]
[1760131829528,1.36166755,3628.5,3601.5,0.24846798]
[1760131829742,1.31651996,3628.3,3601.5,0.24846798]
[1760131829953,1.38396524,3627.7,3601.5,0.24846798]
[1760131830251,2.43252493,3627.3,3601.5,0.52676384]
[1760131830451,1.10849325,3626.7,3601.5,0.10343328]
[1760131830652,1.35496458,3626.4,3601.5,0.10343328]
[1760131830868,1.3266704,3625.9,3601.5,0.10343328]
[1760131831054,1.39425099,3625.7,3601.5,0.10343328]
[1760131831360,0.62769299,3625.6,3601.5,0.10343328]
[1760131831524,1.31951892,3625.5,3601.5,0.10343328]
[1760131831852,1.31951892,3625.5,3598.9,14.5]
[1760131831853,1.39735656,3624.6,3598.9,14.5]
[1760131832051,0.4619,3624.5,3597.7,0.2738667]
[1760131832260,5.9964,3624.5,3587.0,0.001]
[1760131832467,1.30941531,3623.0,3594.2,0.32057817]
[1760131832764,1.30941531,3623.0,3595.5,0.14489664]
[1760131832765,1.11046324,3622.6,3595.5,0.14489664]
[1760131832934,1.11046324,3622.6,3597.0,14.5]
[1760131832935,5.5345,3622.6,3597.0,14.5]
[1760131833140,5.5345,3622.6,3597.1,0.2608127]
[1760131833335,5.53609,3622.6,3597.6,0.001]
[1760131833537,0.32954646,3622.5,3597.7,1.0457813]
[1760131833741,0.00159,3622.6,3597.8,1.37601064]
[1760131833969,0.00159,3622.6,3598.0,1.32788676]
[1760131834171,0.00413026,3622.5,3598.2,1.32165239]
[1760131834360,0.00159,3622.6,3606.6,14.5]
[1760131834539,0.00159,3622.5,3606.6,14.5]
[1760131834744,1.34390528,3622.4,3606.7,0.26331607]
[1760131835050,0.00159,3622.5,3602.0,0.27498274]
[1760131835435,101.34390528,3622.4,3602.1,0.3846679]
[1760131835635,0.00159,3622.5,3602.2,0.27956607]
[1760131835845,0.00617489,3624.4,3602.2,0.27956607]
[1760131835846,0.00159,3622.4,3602.2,0.27956607]
[1760131836276,0.00159,3622.4,3602.3,0.30929953]
[1760131836447,0.00159,3622.4,3602.4,0.2621359]
[1760131836769,0.00159,3622.4,3604.3,14.5]
[1760131836967,0.00159,3622.4,3604.4,0.30714493]
[1760131837472,0.4619,3622.3,3604.4,0.30714493]
[1760131837650,0.46349,3622.3,3604.2,0.34897713]
[1760131837981,0.46349,3622.3,3597.6,0.001]
[1760131838272,0.00159,3622.3,3598.3,0.22086472]
[1760131838444,0.00159,3622.3,3598.4,0.17776968]
[1760131838644,1.39882058,3622.2,3598.4,0.17776968]
[1760131838850,0.00159,3622.2,3598.4,0.17776968]
[1760131839067,0.00159,3622.2,3598.5,0.27582402]
[1760131839270,1.35943482,3622.1,3599.3,14.5]
[1760131839642,0.00159,3622.2,3599.4,0.19459098]
[1760131839837,0.00159,3622.2,3599.4,0.17719777]
[1760131840367,0.00159,3622.2,3603.4,14.5]
[1760131840570,0.00159,3622.2,3603.5,0.22982712]
[1760131840943,0.00159,3622.2,3597.6,0.001]
[1760131841280,1.35943482,3622.1,3598.7,100.0]
[1760131841442,0.00159,3622.2,3598.8,0.2724799]
[1760131841645,0.00159,3622.1,3610.5,14.5]
[1760131841877,0.00159,3622.1,3598.8,0.2724799]
[1760131841878,1.26783781,3636.2,3599.7,0.00487]
[1760131842051,1.26783781,3636.2,3597.8,104.0]
[1760131842052,0.97416769,3636.0,3599.8,0.39051597]
[1760131842252,0.72205054,3635.8,3613.4,14.5]
[1760131842569,0.99819159,3635.6,3599.9,0.76894454]
[1760131842782,0.00647,3635.8,3600.0,5.09]
[1760131842783,0.17737291,3635.4,3600.0,5.09]
[1760131842954,0.34912827,3635.2,3613.1,14.5]
[1760131843270,0.17939013,3635.0,3613.1,14.5]
[1760131843445,0.6483669,3634.8,3606.9,100.0]
[1760131843775,100.0,3630.8,3597.6,0.00507139]
[1760131843954,0.00407139,3630.6,3601.0,0.00407139]
[1760131844158,0.00407139,3630.7,3601.1,100.51465651]
[1760131844369,0.00647,3630.8,3601.1,100.47012928]
[1760131844847,0.00647,3630.8,3614.9,14.5]
[1760131845157,0.00647,3630.8,3599.4,15.806]
[1760131845158,0.00647,3630.8,3603.0,0.00411207]
[1760131845363,0.00647,3630.8,3603.1,0.25401829]
[1760131845665,1.38198575,3630.7,3611.5,14.5]
[1760131845874,0.23283194,3630.8,3611.5,14.5]
[1760131846067,0.00647,3630.8,3603.0,1.23]
[1760131846271,0.00647,3630.8,3603.3,25.5839]
[1760131846445,0.00647,3630.8,3603.4,9.47026003]
[1760131846646,0.00647,3630.8,3603.4,0.55926003]
[1760131846843,0.00647,3630.8,3603.6,30.0]
[1760131847159,0.00647,3630.8,3622.3,14.5]
[1760131847360,0.00647,3630.8,3607.8,0.15768]
[1760131847680,0.41357693,3636.4,3607.9,0.31967919]
[1760131847875,0.17227038,3637.9,3630.7,0.1376]
[1760131848084,0.1376,3628.6,3623.4,0.00162]
[1760131848257,0.1376,3628.6,3616.2,0.15732]
[1760131848258,0.5012252,3638.6,3616.2,0.00162]
[1760131848585,0.17195898,3640.2,3619.8,1.23]
[1760131848984,0.50066587,3639.5,3619.8,15.73]
[1760131849150,0.17195898,3640.2,3619.8,1.23]
[1760131849563,0.2312,3654.8,3619.8,1.23]
[1760131849564,0.50539972,3639.9,3619.8,1.23]
[1760131849763,1.35565568,3636.6,3619.8,2.46]
[1760131849947,0.00411082,3636.6,3619.8,2.46]
[1760131850166,0.0040693,3636.6,3619.8,2.46]
[1760131850372,0.00011082,3636.7,3619.8,2.46]
[1760131850552,0.17776702,3643.8,3619.8,2.46]
[1760131850750,0.17776702,3643.8,3619.9,100.0]
[1760131850953,0.17776702,3643.8,3620.0,0.63493532]
[1760131851156,0.12126037,3643.7,3619.9,101.23]
[1760131851376,0.11358043,3645.3,3620.0,104.59175073]
[1760131851578,0.44704578,3645.8,3619.9,101.23]
[1760131851579,0.16546833,3643.8,3619.9,101.23]
[1760131851757,0.14452515,3643.8,3619.9,101.23]
[1760131851954,0.42872984,3643.9,3620.0,0.58969286]
[1760131852149,0.42872984,3643.9,3619.9,101.23]
[1760131852150,0.018565,3643.9,3619.9,101.23]
[1760131852389,0.018565,3643.9,3620.0,0.63180351]
[1760131852390,0.53248079,3630.4,3620.0,0.63180351]
[1760131852557,0.0387,3643.7,3620.0,0.63180351]
[1760131852758,0.0387,3643.7,3620.0,0.74810258]
[1760131853087,0.002,3643.8,3637.6,0.14359828]
[1760131853380,0.002,3643.8,3630.3,0.00162]
[1760131853553,0.14285192,3643.7,3623.0,0.00162]
[1760131853756,0.002,3643.8,3635.4,99.99600101]
[1760131854166,0.002,3643.8,3635.4,99.02102896]
[1760131854364,0.002,3643.8,3643.0,14.5]
[1760131854567,0.1812844,3642.9,3635.7,0.00161]
[1760131854774,0.13488885,3650.5,3635.8,99.30987592]
[1760131855070,0.15538134,3650.2,3635.8,99.30987592]
[1760131855268,0.15538134,3650.2,3635.8,100.49107592]
[1760131855465,0.4352,3679.0,3635.8,1.23]
[1760131855692,1.38146729,3656.3,3645.4,14.5]
[1760131855993,0.4352,3678.3,3645.4,14.49587127]
[1760131856184,0.4352,3682.8,3644.2,101.37630896]
[1760131856386,0.15538134,3678.4,3644.2,100.0]
[1760131856691,0.4352,3684.2,3644.2,1.17801301]
[1760131856864,1.09342964,3681.9,3650.2,14.5]
[1760131857067,1.09342964,3681.8,3650.2,14.5]
[1760131857263,1.09342964,3684.7,3650.2,14.5]
[1760131857463,0.29623264,3649.9,3646.4,100.0]
[1760131857698,1.09342964,3677.6,3644.2,0.81491534]
[1760131857896,0.97065779,3677.1,3646.4,1.00158861]
[1760131858191,2.44695959,3676.1,3646.4,0.79144939]
[1760131858406,0.18676628,3676.0,3654.6,14.5]
[1760131858596,0.18676628,3676.0,3646.4,0.79144939]
[1760131858597,0.32008873,3654.4,3647.3,0.00161]
[1760131858796,0.97065779,3675.8,3646.4,0.47136066]
[1760131858967,0.016,3672.8,3658.9,14.5]
[1760131859162,0.016,3672.8,3646.5,104.0]
[1760131859163,0.30635318,3654.5,3651.6,0.00161]
[1760131859364,0.00161,3648.6,3646.5,1.23]
[1760131859592,1.379345,3671.4,3650.3,0.26923174]
[1760131859797,0.00460599,3670.5,3647.2,0.30036679]
[1760131859968,0.19701019,3670.4,3646.5,1.23]
[1760131860170,0.34275832,3670.4,3646.5,0.49501101]
[1760131860496,1.19544773,3670.2,3646.5,0.14146971]
[1760131860701,0.2339,3686.2,3650.1,14.5]
[1760131860702,1.31512148,3670.0,3650.1,14.5]
[1760131860888,0.35675542,3669.9,3650.1,14.5]
[1760131861093,0.26120591,3669.8,3646.6,100.0]
[1760131861268,0.51487542,3669.8,3646.5,1.37146971]
[1760131861468,0.00460599,3669.7,3646.5,0.72190033]
[1760131861667,0.23883861,3669.6,3646.6,0.24876302]
[1760131861902,0.2992636,3669.6,3646.6,0.24876302]
[1760131862104,0.30343871,3669.6,3655.2,14.5]
[1760131862336,0.33663836,3670.1,3655.2,14.5]
[1760131862490,0.00465299,3670.0,3655.3,0.31148162]
[1760131862690,0.0092,3672.8,3648.0,0.29924445]
[1760131862894,1.36460978,3672.6,3648.0,0.29924445]
[1760131863200,0.0092,3672.8,3648.9,16.325]
[1760131863416,0.34795266,3672.5,3659.7,14.5]
[1760131863616,0.0092,3672.8,3659.8,0.28612355]
[1760131863820,0.0092,3672.8,3652.4,0.00161]
[1760131863821,0.29368897,3672.7,3652.4,0.16631076]
[1760131864026,0.0092,3672.8,3652.5,0.21011743]
[1760131864711,0.3282283,3672.7,3652.5,1.23]
[1760131864913,0.0092,3672.8,3652.6,0.15422032]
[1760131865091,0.2339,3694.6,3652.6,0.15422032]
[1760131865092,0.48092532,3685.8,3655.6,14.5]
[1760131865419,0.22834433,3685.6,3655.7,0.14425356]
[1760131865598,0.23067437,3685.4,3652.5,1.23]
[1760131865802,0.23067437,3685.2,3652.5,1.23]
[1760131865988,0.22834433,3684.1,3652.6,0.1233335]
[1760131866192,0.23067437,3683.9,3656.7,14.5]
[1760131866426,0.6458913,3682.4,3656.7,14.5]
[1760131866634,0.23067437,3682.2,3652.5,2.46]
[1760131866832,0.23067437,3682.1,3656.6,0.19203432]
[1760131867124,0.23067437,3681.9,3655.0,0.16015827]
[1760131867425,0.23067437,3681.9,3652.5,2.46]
[1760131867426,1.32329838,3681.9,3655.1,0.19401707]
[1760131867631,0.64314131,3681.2,3658.3,14.5]
[1760131867801,0.26264615,3682.1,3658.3,14.5]
[1760131868125,0.21079376,3688.6,3656.8,0.23455088]
[1760131868296,1.72235256,3688.5,3658.0,0.28920447]
[1760131868499,1.31341994,3688.3,3658.5,14.5]
[1760131868734,0.77481778,3688.1,3658.5,14.5]
[1760131868891,1.3566708,3687.9,3658.5,1.23]
[1760131869246,0.09943095,3658.5,3652.6,1.37724731]
[1760131869391,1.38365312,3689.8,3652.6,0.26560436]
[1760131869598,1.3907869,3689.4,3652.6,0.26560436]
[1760131869833,0.37879291,3689.2,3654.3,14.5]
[1760131870060,1.31418723,3689.0,3654.4,0.24950268]
[1760131870271,0.16581907,3688.9,3654.4,0.24950268]
[1760131870443,1.77538985,3688.8,3654.4,0.24950268]
[1760131870647,1.33017432,3688.6,3654.4,0.24950268]
[1760131870857,0.21392281,3688.5,3654.4,0.24950268]
[1760131871153,1.34170295,3688.4,3654.4,0.14950268]
[1760131871338,1.33040819,3688.2,3654.4,0.16855124]
[1760131871659,1.39884443,3688.0,3654.4,0.16855124]
[1760131871860,0.25258142,3687.9,3655.7,14.5]
[1760131872167,1.73576445,3687.8,3655.8,0.23984621]
[1760131872375,0.2522139,3687.7,3655.8,0.14633593]
[1760131872536,0.71089726,3687.5,3654.4,1.23]
[1760131872737,1.30214746,3687.3,3654.5,0.18880151]
[1760131872936,0.2470369,3688.7,3654.4,1.23]
[1760131873168,0.72481778,3688.1,3654.5,0.18336818]
[1760131873367,0.99884443,3688.0,3654.4,2.46]
[1760131873539,0.60056445,3687.8,3654.4,2.46]
[1760131873865,1.35281802,3687.6,3654.4,2.46]
[1760131874047,6.80051802,3687.6,3654.4,2.46]
[1760131874245,1.32111538,3687.4,3654.4,2.46]
[1760131874563,1.38499034,3687.2,3654.5,0.11879122]
[1760131874754,0.58805594,3687.0,3669.1,14.5]
[1760131874956,0.27863314,3657.7,3654.4,3.8492]
[1760131875158,0.14296707,3661.8,3654.4,3.69]
[1760131875462,0.04296707,3661.8,3654.4,2.99370374]
[1760131875670,0.32264823,3661.7,3654.4,2.64186056]
[1760131875847,0.04296707,3661.8,3654.4,2.33100038]
[1760131876164,0.32141428,3661.7,3654.4,2.9265896]
[1760131876359,0.04296707,3661.8,3654.4,2.39061513]
[1760131876743,0.4598,3686.2,3662.2,0.04296707]
[1760131876945,0.04296707,3656.3,3654.9,0.00161]
[1760131877148,0.4598,3683.9,3654.4,2.14310712]
[1760131877354,0.28504525,3686.1,3654.4,2.14310712]
[1760131877355,0.60230996,3683.7,3654.4,2.14310712]
[1760131877665,0.60733006,3683.5,3654.5,0.26630287]
[1760131877867,1.00845401,3683.4,3654.4,2.98382087]
[1760131878164,1.09298137,3683.1,3654.4,2.06312695]
[1760131878347,0.7059531,3682.9,3654.4,1.72495967]
[1760131878551,0.70656519,3682.7,3654.4,1.72495967]
[1760131878872,0.70887465,3682.5,3654.4,2.40191928]
[1760131879165,1.38432108,3682.3,3654.4,2.40191928]
[1760131879371,1.32719397,3680.8,3654.4,2.10889048]
[1760131879667,1.32720053,3680.6,3654.4,1.3781073]
[1760131879857,1.39229762,3680.4,3654.4,0.92373254]
[1760131880164,0.00401528,3680.1,3654.4,1.65555263]
[1760131880367,1.3237625,3679.9,3654.4,1.3956784]
[1760131880548,1.39919578,3679.5,3654.4,1.19779534]
[1760131880748,1.34319789,3679.3,3654.4,0.80755976]
[1760131881069,0.82406362,3679.1,3654.4,0.80755976]
[1760131881244,1.33251706,3678.7,3654.4,0.4936407]
[1760131881446,1.30503924,3678.5,3654.4,1.23]
[1760131881769,1.30935146,3678.1,3652.5,0.45432422]
[1760131881955,1.37642514,3677.7,3652.5,0.20303075]
[1760131882268,2.09264801,3677.6,3651.4,0.2264]
[1760131882466,1.37153116,3677.5,3651.4,0.17162874]
[1760131882668,1.38195051,3677.3,3644.1,0.00161]
[1760131882870,1.30571873,3677.2,3648.1,0.3964875]
[1760131883054,1.34100293,3677.0,3648.0,2.46]
[1760131883369,0.67867874,3676.9,3648.0,2.46]
[1760131883563,1.35950061,3676.7,3648.0,2.46]
[1760131883760,1.21473684,3676.6,3648.0,2.09898757]
[1760131883968,1.35099139,3676.4,3648.0,1.78506851]
[1760131884267,1.09441714,3676.1,3648.0,2.85810898]
[1760131884466,0.32138139,3675.9,3648.0,2.6973198]
[1760131884647,0.00407003,3675.7,3648.0,2.6973198]
[1760131884854,0.63338896,3675.6,3648.1,0.26980647]
[1760131885170,0.47946276,3675.5,3648.1,0.11358043]
[1760131885470,1.18594942,3675.4,3648.1,0.11358043]
[1760131885651,0.74890344,3675.3,3648.1,1.34358043]
[1760131885977,0.82388341,3675.2,3648.2,0.11358043]
[1760131886155,11.51854813,3675.2,3648.2,0.08081415]
[1760131886358,0.69104153,3675.1,3648.2,0.11358043]
[1760131886556,0.4598,3675.0,3648.1,1.01538878]
[1760131886860,0.79443792,3674.9,3648.1,1.01538878]
[1760131887050,1.33043639,3674.7,3648.2,0.13134216]
[1760131887367,0.6704505,3674.6,3648.2,0.1544403]
[1760131887567,11.67268144,3674.6,3648.1,2.24538878]
[1760131887873,12.20067888,3674.6,3648.1,1.64129996]
[1760131888052,0.136,3664.2,3663.5,0.136]
[1760131888373,0.136,3663.4,3654.5,0.19812086]
[1760131888546,0.136,3663.4,3648.1,1.64129996]
[1760131888547,0.141,3649.9,3648.1,1.64129996]
[1760131888743,0.28860492,3664.1,3648.1,1.64129996]
[1760131889064,1.35339443,3665.4,3648.1,1.64129996]
[1760131889245,1.35117266,3664.5,3653.7,0.03488479]
[1760131889443,0.82057005,3674.7,3648.1,1.64229996]
[1760131889444,0.24599291,3664.4,3648.1,1.64229996]
[1760131889645,5.4701,3664.4,3648.1,1.64229996]
[1760131889852,5.4701,3664.4,3648.1,2.87229996]
[1760131890050,0.00403237,3664.2,3648.1,2.87229996]
[1760131890342,5.4701,3664.2,3648.1,2.87229996]
[1760131890667,1.36007212,3664.1,3648.1,2.87229996]
[1760131890987,1.31657132,3663.9,3648.1,2.87229996]
[1760131891176,5.4701,3663.9,3648.1,4.10229996]
[1760131891546,4.97341916,3663.9,3648.1,4.10229996]
[1760131891877,4.97341916,3663.9,3648.2,14.5]
[1760131892280,4.97341916,3663.9,3648.3,0.19103519]
[1760131892486,1.33712843,3679.1,3648.1,5.33229996]
[1760131892781,1.36473076,3678.9,3648.2,0.618]
[1760131892958,1.3762169,3678.7,3648.3,0.4585]
[1760131893153,1.37117715,3678.5,3648.2,0.1595]
[1760131893380,1.34950631,3678.3,3648.2,0.1595]
[1760131893584,0.48125698,3678.2,3648.2,0.05235963]
[1760131893762,1.98564992,3678.1,3648.2,1.29388649]
[1760131893969,1.31389144,3677.9,3648.2,1.28235963]
[1760131894172,1.38980037,3677.7,3648.2,1.28235963]
[1760131894366,1.3290163,3677.5,3648.2,1.28235963]
[1760131894675,1.31010812,3677.3,3648.3,0.25553757]
[1760131894984,1.30314123,3677.1,3648.2,1.28235963]
[1760131895191,1.5083036,3677.0,3649.0,14.5]
[1760131895487,1.5083036,3677.0,3648.2,2.51235963]
[1760131895488,1.32595079,3676.8,3649.1,0.41767591]
[1760131895666,5.4595,3676.8,3649.2,0.1393]
[1760131895873,5.4595,3676.8,3649.3,14.78912627]
[1760131896073,0.002,3679.2,3649.3,14.78912627]
[1760131896276,0.002,3679.2,3649.3,0.28912627]
[1760131896583,0.002,3679.2,3649.3,1.51912627]
[1760131896789,0.4606224,3679.1,3649.3,1.51912627]
[1760131897087,5.61769448,3679.1,3649.3,1.52318002]
[1760131897287,1.35767332,3679.0,3654.7,0.00405375]
[1760131897584,1.39555903,3678.8,3654.7,0.00405375]
[1760131897790,1.336881,3678.6,3654.8,0.22938026]
[1760131897959,1.37117715,3678.5,3654.7,15.73]
[1760131898163,6.82937715,3678.5,3654.8,0.26151801]
[1760131898358,0.20697304,3678.4,3654.7,1.23]
[1760131898591,5.66517304,3678.4,3654.7,1.23]
[1760131898980,0.002,3679.2,3654.7,1.23]
[1760131899159,0.002,3679.2,3654.7,2.46]
[1760131899365,1.56374599,3679.1,3654.7,2.46]
[1760131899571,0.33002363,3680.4,3654.8,0.23460343]
[1760131899796,0.13104752,3679.1,3654.7,2.46]
[1760131899997,1.35767332,3679.0,3654.7,2.46405348]
[1760131900172,6.81087332,3679.0,3654.7,2.46405348]
[1760131900368,5.4532,3679.0,3654.8,0.00405348]
[1760131900588,0.23978566,3678.9,3654.7,3.69]
[1760131900790,5.69298566,3678.9,3654.7,3.69]
[1760131900985,5.69298566,3678.9,3659.0,14.5]
[1760131901183,5.4532,3678.9,3659.0,14.5]
[1760131901401,5.4532,3678.9,3654.7,3.69]
[1760131901591,5.4532,3678.9,3654.8,0.31993085]
[1760131901892,0.1913909,3678.8,3654.8,1.23]